bitfinex-derivatives/quotes_ETHF0:USTF0_20250316
["timestamp","ask_amount","ask_price","bid_price","bid_amount"]
[1742098056727,1.72147,1929.4,1929.3,2.41002]
[1742098057030,1.72147,1929.4,1929.3,1.3734]
[1742098057622,1.68582031,1929.7,1929.3,1.3734]
[1742098057623,5.93008031,1929.7,1929.3,1.3734]
[1742098057828,4.89362031,1929.7,1929.3,1.3734]
[1742098058029,8.25931746,1929.7,1929.5,1.03648]
[1742098058326,7.22287746,1929.7,1929.6,2.46696]
[1742098058519,8.18762031,1929.7,1929.6,2.46696]
[1742098058724,7.22287746,1929.7,1929.6,2.46696]
[1742098059529,3.92887746,1929.7,1929.6,2.46696]
[1742098059834,4.96527746,1929.7,1929.6,2.46696]
[1742098060034,1.75747746,1929.7,1929.6,2.46696]
[1742098060327,1.75747746,1929.7,1929.6,1.4305]
[1742098060533,4.96527746,1929.7,1929.6,1.4305]
[1742098060730,1.03655,1929.5,1929.3,1.03659]
[1742098060928,3.2078,1929.5,1929.3,2.46632]
[1742098061133,4.24435,1929.5,1929.4,1.4297]
[1742098061531,3.2078,1929.5,1929.4,2.46627]
[1742098061739,1.03648,1929.6,1929.5,1.03651]
[1742098061935,1.03648,1929.6,1929.5,2.46621]
[1742098062235,4.25202746,1929.7,1929.5,2.46621]
[1742098062435,4.25202746,1929.7,1929.6,1.4297]
[1742098062930,4.25202746,1929.7,1929.6,2.46616]
[1742098063136,3.21557746,1929.7,1929.6,2.46616]
[1742098064737,0.00777746,1929.7,1929.6,2.46616]
[1742098066936,1.3628,1930.0,1929.9,1.0363]
[1742098079645,3.92338496,1930.1,1929.8,1.4556]
[1742098079948,3.21298496,1930.1,1930.0,1.03624]
[1742098080646,0.00518496,1930.1,1930.0,1.03624]
[1742098083846,0.00518496,1930.1,1930.0,3.75204]
[1742098084836,0.67498496,1930.1,1930.0,3.75204]
[1742098085151,2.72648496,1930.1,1930.0,2.34874]
[1742098085445,2.72648496,1930.1,1930.0,1.3125]
[1742098085657,2.72648496,1930.1,1930.0,2.34874]
[1742098085850,2.72648496,1930.1,1930.0,1.3125]
[1742098086043,3.76267496,1930.1,1930.0,1.3125]
[1742098087847,2.72648496,1930.1,1930.0,2.34874]
[1742098090747,6.97047496,1930.1,1930.0,1.3125]
[1742098091248,6.97047496,1930.1,1929.9,1.03629]
[1742098091249,1.03632,1929.9,1929.6,3.2078]
[1742098091440,2.36647,1930.0,1929.8,2.36385]
[1742098091642,1.03627,1930.0,1929.9,1.3275]
[1742098093451,4.34327,1930.0,1929.9,1.3275]
[1742098097647,4.34327,1930.0,1929.6,0.6763]
[1742098097648,3.307,1930.0,1929.6,1.71273]
[1742098097857,1.03637,1929.8,1929.7,1.3326]
[1742098099061,1.70027,1929.8,1929.7,2.369]
[1742098099458,1.70027,1929.8,1929.7,1.3326]
[1742098100255,1.03646,1929.7,1929.5,1.03649]
[1742098100461,4.24426,1929.7,1929.6,1.3126]
[1742098101059,1.03657,1929.4,1929.3,1.03661]
[1742098101271,1.03662,1929.3,1929.2,4.24443]
[1742098101479,0.6903,1929.3,1929.2,4.24443]
[1742098101868,1.72692,1929.3,1929.1,2.43119]
[1742098102266,1.72692,1929.3,1929.2,2.34927]
[1742098102468,1.72692,1929.3,1929.2,1.3126]
[1742098102775,1.72692,1929.3,1929.2,2.34927]
[1742098103168,0.6903,1929.3,1929.2,2.34927]
[1742098103776,0.6903,1929.3,1929.2,1.3126]
[1742098104078,0.6903,1929.3,1929.2,2.34927]
[1742098104283,4.2444,1929.4,1929.2,2.34927]
[1742098104573,4.2444,1929.4,1929.3,1.358]
[1742098104769,1.03667,1929.2,1929.1,0.7088]
[1742098104971,1.03667,1929.2,1929.0,1.76426]
[1742098105775,1.75105,1929.3,1929.1,1.03673]
[1742098105976,1.75105,1929.3,1929.1,2.38103]
[1742098106476,1.75105,1929.3,1929.2,1.3443]
[1742098106777,3.10315,1929.3,1929.2,1.3443]
[1742098110880,2.0665,1929.3,1929.2,2.38097]
[1742098111373,3.10312,1929.3,1929.2,1.3443]
[1742098111776,2.0665,1929.3,1929.2,2.38097]
[1742098111981,3.10312,1929.3,1929.2,1.3443]
[1742098120294,6.31092,1929.3,1929.2,1.3443]
[1742098121091,3.10312,1929.3,1929.2,1.3443]
[1742098122082,1.03673,1929.1,1929.0,2.43874]
[1742098122388,1.03678,1929.0,1928.9,0.00777746]
[1742098123388,1.03678,1929.0,1928.9,1.44097746]
[1742098123889,1.74458,1929.0,1928.9,1.44097746]
[1742098124091,3.2078,1929.3,1928.9,1.44097746]
[1742098124293,1.4351,1929.2,1929.1,1.03673]
[1742098125585,0.7249,1929.4,1929.2,1.03667]
[1742098125790,4.24432,1929.5,1929.3,1.72128]
[1742098125990,4.24432,1929.5,1929.4,0.6568]
[1742098126188,5.67942,1929.5,1929.4,0.6568]
[1742098128087,4.6429,1929.5,1929.4,1.69337]
[1742098128692,1.4351,1929.5,1929.4,1.69337]
[1742098129690,1.4351,1929.5,1929.4,0.6568]
[1742098130095,2.47161,1929.5,1929.4,0.6568]
[1742098130284,1.4351,1929.5,1929.4,0.6568]
[1742098130890,1.4351,1929.5,1929.4,1.69337]
[1742098131495,2.47161,1929.5,1929.4,0.6568]
[1742098136801,2.47161,1929.5,1929.4,2.0494]
[1742098137301,3.14951,1929.5,1929.4,2.0494]
[1742098137500,3.14951,1929.5,1929.4,1.3926]
[1742098139795,3.14951,1929.5,1929.4,2.42917]
[1742098140597,3.14951,1929.5,1929.4,1.3926]
[1742098141097,3.14951,1929.5,1929.4,2.42917]
[1742098141299,3.14951,1929.5,1929.4,1.3926]
[1742098143504,3.14951,1929.5,1928.9,2.59981746]
[1742098143505,2.59142,1929.4,1928.9,1.04456746]
[1742098143711,1.03676,1929.1,1929.0,1.379]
[1742098144501,2.49336,1929.1,1929.0,1.379]
[1742098151614,1.03678,1929.0,1928.9,0.00777746]
[1742098151814,3.19008,1929.0,1928.9,0.00777746]
[1742098152215,6.48508,1929.0,1928.9,0.00777746]
[1742098160726,6.48508,1929.0,1928.6,0.7045]
[1742098160727,5.4483,1929.0,1928.6,0.7045]
[1742098161019,3.2078,1928.8,1928.7,1.313]
[1742098161418,5.56699,1928.8,1928.7,1.313]
[1742098168729,1.03694,1928.7,1928.6,0.00777746]
[1742098169031,6.41674,1928.7,1928.6,1.37727746]
[1742098169731,6.41674,1928.7,1928.6,2.05737746]
[1742098169935,5.70394,1928.7,1928.6,2.05737746]
[1742098170130,2.41394,1928.7,1928.6,2.05737746]
[1742098172030,1.377,1928.7,1928.6,3.09437746]
[1742098172231,1.03694,1928.7,1928.6,2.05737746]
[1742098173225,2.37424,1928.7,1928.6,2.05737746]
[1742098176732,4.32792,1928.8,1928.6,3.09437746]
[1742098176934,4.32792,1928.8,1928.7,1.4171]
[1742098177532,5.67092,1928.8,1928.7,1.4171]
[1742098181132,9.56062,1928.8,1928.7,1.4171]
[1742098181840,10.52964961,1928.8,1928.7,1.4171]
[1742098184044,1.03694,1928.7,1928.6,0.00777746]
[1742098184342,2.45374,1928.7,1928.6,0.00777746]
[1742098185943,3.42276961,1928.7,1928.6,0.00777746]
[1742098196360,6.63056961,1928.7,1928.6,0.00777746]
[1742098198757,6.63056961,1928.7,1928.6,1.34587746]
[1742098199354,9.91956961,1928.7,1928.6,1.34587746]
[1742098199657,8.88262961,1928.7,1928.6,3.10027746]
[1742098199854,6.4968,1928.7,1928.6,3.10027746]
[1742098201554,3.2078,1928.7,1928.6,3.10027746]
[1742098201754,4.24474,1928.7,1928.6,3.10027746]
[1742098202160,3.2078,1928.7,1928.6,3.10027746]
[1742098202357,1.03694,1928.7,1928.6,3.10027746]
[1742098202863,1.03694,1928.7,1928.6,2.06327746]
[1742098203053,3.13674,1928.7,1928.6,2.06327746]
[1742098205659,2.44054,1928.7,1928.6,2.06327746]
[1742098205961,2.44054,1928.7,1928.6,3.10027746]
[1742098206149,2.44054,1928.7,1928.6,2.06327746]
[1742098207863,2.44054,1928.7,1928.6,3.10027746]
[1742098208367,2.44054,1928.7,1928.6,2.06327746]
[1742098210653,5.64834,1928.7,1928.6,2.06327746]
[1742098211255,6.61790078,1928.7,1928.6,2.06327746]
[1742098212765,5.21430078,1928.7,1928.6,2.06327746]
[1742098213160,1.03694,1928.7,1928.6,3.10027746]
[1742098213363,4.25856078,1928.8,1928.6,2.06327746]
[1742098213563,5.29547078,1928.8,1928.7,1.3926]
[1742098213762,6.69847078,1928.8,1928.7,2.1136]
[1742098215466,0.96956078,1928.8,1928.7,3.15054]
[1742098215674,2.00645078,1928.8,1928.7,3.15054]
[1742098215875,1.03689,1928.8,1928.7,2.1136]
[1742098216067,1.03689,1928.8,1928.7,3.15054]
[1742098216268,5.63884746,1928.9,1928.7,3.15054]
[1742098216573,6.60840824,1928.9,1928.8,1.346]
[1742098217274,0.97733824,1928.9,1928.8,2.38289]
[1742098217665,0.00777746,1928.9,1928.8,2.38289]
[1742098219574,1.38957746,1928.9,1928.8,2.38289]
[1742098219875,2.42640746,1928.9,1928.8,2.38289]
[1742098220072,1.38957746,1928.9,1928.8,2.38289]
[1742098222275,0.00777746,1928.9,1928.8,2.38289]
[1742098226579,1.36587746,1928.9,1928.8,2.38289]
[1742098226780,0.00777746,1928.9,1928.8,2.38289]
[1742098227877,1.43987746,1928.9,1928.8,2.38289]
[1742098228578,0.00777746,1928.9,1928.8,2.38289]
[1742098230483,0.00777746,1928.9,1928.8,5.59069]
[1742098238192,1.3691,1929.2,1929.1,1.03673]
[1742098238591,1.3691,1929.2,1929.0,3.2078]
[1742098238592,0.7158,1929.4,1929.3,1.03662]
[1742098238784,1.75239,1929.4,1929.2,1.03664]
[1742098239090,2.46829,1929.4,1929.2,1.03664]
[1742098239388,1.4317,1929.4,1929.3,1.03662]
[1742098239781,2.46827,1929.4,1929.3,1.03662]
[1742098240080,2.8163,1929.4,1929.3,1.03662]
[1742098240280,3.85287,1929.4,1929.3,1.03662]
[1742098240882,2.8163,1929.4,1929.3,1.03662]
[1742098241379,3.85287,1929.4,1929.3,1.03662]
[1742098241582,2.8163,1929.4,1929.3,1.03662]
[1742098241988,2.8163,1929.4,1929.3,1.69862]
[1742098242386,2.8163,1929.4,1929.3,3.03302]
[1742098242689,1.3846,1929.4,1929.3,3.03302]
[1742098243292,4.97382496,1929.5,1929.3,3.03302]
[1742098243493,6.31742496,1929.5,1929.4,1.4255]
[1742098243706,4.97382496,1929.5,1929.4,1.4255]
[1742098244087,4.97382496,1929.5,1929.4,2.46207]
[1742098244287,3.93728496,1929.5,1929.4,2.46207]
[1742098244988,3.21298496,1929.5,1929.4,2.46207]
[1742098249191,1.3252,1929.7,1929.6,1.03646]
[1742098249697,2.3616,1929.7,1929.6,1.03646]
[1742098249898,1.3252,1929.7,1929.6,2.39316]
[1742098250197,2.3616,1929.7,1929.6,2.39316]
[1742098251398,1.3252,1929.7,1929.6,2.39316]
[1742098252003,2.3616,1929.7,1929.6,2.39316]
[1742098252999,1.3252,1929.7,1929.6,2.39316]
[1742098253394,2.3616,1929.7,1929.6,2.39316]
[1742098254502,1.03646,1929.6,1929.5,1.03648]
[1742098254803,2.36163,1929.7,1929.5,1.03648]
[1742098255301,1.3252,1929.7,1929.5,1.03648]
[1742098255702,1.03646,1929.6,1929.5,1.03648]
[1742098255905,2.36165,1929.7,1929.5,1.03648]
[1742098256202,1.03646,1929.6,1929.5,1.03648]
[1742098256800,2.38046,1929.6,1929.5,1.03648]
[1742098258207,4.5518,1929.6,1929.4,2.45813]
[1742098258501,2.0459,1929.5,1929.4,2.45813]
[1742098259302,1.3319,1929.5,1929.4,2.45813]
[1742098259505,1.373,1929.7,1929.6,1.03646]
[1742098260406,2.34165206,1929.7,1929.6,1.03646]
[1742098260801,3.67355206,1929.7,1929.6,1.03646]
[1742098261001,2.7049,1929.7,1929.6,1.72266]
[1742098261704,2.7049,1929.7,1929.6,2.41596]
[1742098264196,3.7413,1929.7,1929.5,2.39647]
[1742098264402,1.4164,1929.6,1929.5,2.39647]
[1742098264704,2.45286,1929.6,1929.5,1.36]
[1742098264905,2.45286,1929.6,1929.5,2.39651]
[1742098266698,2.45286,1929.6,1929.5,1.36]
[1742098268607,1.4164,1929.6,1929.5,2.39651]
[1742098269108,1.4164,1929.6,1929.5,3.06591]
[1742098270404,1.373,1929.7,1929.6,1.03646]
[1742098270610,2.6858,1929.7,1929.6,2.35886]
[1742098270809,1.3128,1929.7,1929.6,2.35886]
[1742098273908,4.84715711,1929.8,1929.7,1.0364]
[1742098274109,6.22245711,1929.8,1929.7,3.8253]
[1742098274608,5.2528,1929.8,1929.7,3.8253]
[1742098274803,2.045,1929.8,1929.7,3.8253]
[1742098275710,1.3753,1929.8,1929.7,3.8253]
[1742098280521,5.61945,1929.8,1929.7,1.3795]
[1742098286525,1.0364,1929.7,1929.6,1.389]
[1742098286722,3.7662,1929.7,1929.6,1.389]
[1742098292529,6.974,1929.7,1929.6,1.389]
[1742098293130,10.261,1929.7,1929.6,1.389]
[1742098293330,1.0365,1929.6,1929.4,1.03655]
[1742098293522,1.0365,1929.6,1929.4,2.47875]
[1742098293523,1.03651,1929.5,1929.4,2.47875]
[1742098293730,1.72781,1929.5,1929.4,1.4422]
[1742098294826,3.12831,1929.5,1929.4,1.4422]
[1742098295027,6.33611,1929.5,1929.4,1.4422]
[1742098296121,1.03666,1929.3,1929.1,3.2078]
[1742098296327,1.03666,1929.3,1929.2,1.3444]
[1742098296726,3.12916,1929.3,1929.2,1.3444]
[1742098296931,1.03673,1929.1,1929.0,1.4048]
[1742098297330,1.03673,1929.1,1929.0,0.7111]
[1742098297635,1.03673,1929.1,1928.9,3.2078]
[1742098297636,1.76157,1929.1,1928.9,3.2078]
[1742098297822,0.6843,1929.0,1928.9,4.24462]
[1742098298135,1.72108,1929.0,1928.9,3.2078]
[1742098298325,3.06398,1929.0,1928.9,3.2078]
[1742098298830,3.06398,1929.0,1928.9,4.544]
[1742098299126,2.0272,1929.0,1928.9,5.58083]
[1742098299533,3.06398,1929.0,1928.9,5.58083]
[1742098299735,2.0272,1929.0,1928.9,5.58083]
[1742098301134,3.06398,1929.0,1928.9,5.58083]
[1742098301435,2.0272,1929.0,1928.9,5.58083]
[1742098303035,2.0272,1929.0,1928.9,2.37303]
[1742098305441,3.06398,1929.0,1928.9,1.3362]
[1742098315850,3.2078,1929.1,1928.9,1.3362]
[1742098316038,3.2078,1929.1,1929.0,1.70998]
[1742098316238,3.2078,1929.1,1929.0,2.42128]
[1742098317046,5.66459,1929.2,1929.1,1.03673]
[1742098317347,5.66459,1929.2,1929.1,2.34913]
[1742098317543,1.3399,1929.2,1929.1,2.34913]
[1742098317744,7.53244,1929.3,1929.1,2.34913]
[1742098317940,7.53244,1929.3,1929.2,1.3124]
[1742098318340,8.87234,1929.3,1929.2,1.3124]
[1742098318549,6.4958,1929.3,1929.2,2.34907]
[1742098319043,3.2078,1929.3,1929.2,2.34907]
[1742098323744,4.24442,1929.3,1929.2,1.3124]
[1742098323944,3.8743,1929.3,1929.2,2.34907]
[1742098324355,5.219,1929.3,1929.2,2.34907]
[1742098324752,6.25562,1929.3,1929.2,2.34907]
[1742098325654,6.25562,1929.3,1929.2,1.3124]
[1742098326658,6.25562,1929.3,1929.2,2.34907]
[1742098327056,5.219,1929.3,1929.2,2.34907]
[1742098327354,4.5525,1929.3,1929.2,2.34907]
[1742098327955,1.3447,1929.3,1929.2,2.34907]
[1742098330559,2.38132,1929.3,1929.2,2.34907]
[1742098330756,3.04002,1929.3,1929.2,1.3124]
[1742098331254,1.03671,1929.2,1929.0,2.42125]
[1742098331457,2.40601,1929.2,1929.1,1.333]
[1742098332058,5.69301,1929.2,1929.1,1.333]
[1742098336864,2.40601,1929.2,1929.1,1.333]
[1742098337063,2.40601,1929.2,1929.1,2.7222]
[1742098337461,2.40597,1929.2,1929.1,3.75893]
[1742098337655,1.3693,1929.2,1929.1,3.75893]
[1742098341354,7.1535,1929.3,1929.2,1.03667]
[1742098341556,8.5777,1929.3,1929.2,2.44137]
[1742098342767,5.2907,1929.3,1929.2,2.44137]
[1742098343167,2.0829,1929.3,1929.2,2.44137]
[1742098348267,1.4242,1929.3,1929.2,2.44137]
[1742098348670,2.46082,1929.3,1929.2,1.4047]
[1742098348867,3.13652,1929.3,1929.2,1.4047]
[1742098349066,1.03667,1929.2,1929.1,1.0367]
[1742098349266,3.05497,1929.2,1929.1,1.0367]
[1742098349869,2.0183,1929.2,1929.1,1.0367]
[1742098354070,1.03673,1929.1,1929.0,1.4441]
[1742098354379,2.37723,1929.1,1929.0,2.48088]
[1742098354772,1.3405,1929.1,1929.0,2.48088]
[1742098359379,3.9933,1929.2,1929.1,1.03673]
[1742098359571,5.3303,1929.2,1929.1,3.08833]
[1742098359873,6.36697,1929.2,1929.1,3.08833]
[1742098360281,6.36697,1929.2,1929.1,2.0516]
[1742098360879,9.57477,1929.2,1929.1,2.0516]
[1742098361082,6.36697,1929.2,1929.1,2.0516]
[1742098361881,6.36697,1929.2,1929.1,3.08833]
[1742098362377,5.3303,1929.2,1929.1,3.08833]
[1742098363267,1.64698434,1929.3,1929.2,1.03667]
[1742098363472,3.03408434,1929.3,1929.2,2.45977]
[1742098363873,4.07070434,1929.3,1929.2,1.4231]
[1742098364072,4.74520434,1929.3,1929.2,1.4231]
[1742098371688,4.74520434,1929.3,1928.9,1.70101]
[1742098371689,1.03676,1929.1,1928.9,1.70101]
[1742098371884,1.03676,1929.1,1929.0,1.3764]
[1742098372087,1.03676,1929.1,1929.0,2.41318]
[1742098372389,1.75046,1929.1,1929.0,1.3764]
[1742098378394,4.95826,1929.1,1929.0,1.3764]
[1742098381091,7.2085,1929.1,1928.7,0.6908]
[1742098381289,1.03689,1928.8,1928.7,1.4017]
[1742098383695,4.32389,1928.8,1928.7,1.4017]
[1742098386795,5.68579,1928.8,1928.7,1.4017]
[1742098387795,1.03694,1928.7,1928.6,0.00777746]
[1742098388093,3.80424,1928.7,1928.6,1.33287746]
[1742098392189,3.80424,1928.7,1928.6,0.00777746]
[1742098392991,1.037,1928.6,1928.5,1.4099]
[1742098393292,1.03714,1928.4,1928.2,2.42097]
[1742098393502,2.37276,1928.3,1928.2,1.3838]
[1742098394492,1.03721,1928.2,1928.1,0.00777746]
[1742098394701,3.03991,1928.2,1928.1,0.00777746]
[1742098396492,3.03991,1928.2,1928.1,1.35857746]
[1742098397700,1.3356,1928.2,1928.1,2.39583746]
[1742098397997,0.68177746,1928.4,1928.1,2.39580746]
[1742098397998,1.4235,1928.3,1928.1,2.39580746]
[1742098398201,1.4235,1928.3,1928.2,2.7739]
[1742098398590,1.4235,1928.3,1928.2,3.81111]
[1742098402606,0.00777746,1928.4,1928.3,1.03716]
[1742098402902,0.00777746,1928.4,1928.3,2.49246]
[1742098418020,1.33557746,1928.4,1928.3,2.49246]
[1742098428730,2.02947746,1928.4,1928.3,2.49246]
[1742098432538,2.02947746,1928.4,1928.3,1.03716]
[1742098434334,3.06657746,1928.4,1928.3,1.03716]
[1742098434637,2.02947746,1928.4,1928.3,1.03716]
[1742098435041,3.06657746,1928.4,1928.2,2.42378]
[1742098435237,2.1616,1928.3,1928.1,3.21557746]
[1742098435445,1.3604,1928.2,1928.1,4.25283746]
[1742098436135,2.39761,1928.2,1928.1,4.25283746]
[1742098436338,2.39761,1928.2,1928.1,0.00777746]
[1742098443640,1.03743,1927.8,1927.6,1.03753]
[1742098443837,0.7062,1927.7,1927.6,2.48053]
[1742098444036,3.89558,1927.7,1927.6,1.443]
[1742098444236,3.89558,1927.7,1927.5,1.03755]
[1742098444442,1.4404,1927.6,1927.5,2.48055]
[1742098444639,1.4404,1927.6,1927.5,1.443]
[1742098444844,1.4404,1927.6,1927.5,2.48059]
[1742098454352,2.47793,1927.6,1927.5,1.443]
[1742098455253,1.03769,1927.4,1927.2,1.03773]
[1742098455549,1.03769,1927.4,1927.2,3.17373]
[1742098455754,1.3367,1927.3,1927.2,3.17373]
[1742098456049,1.3367,1927.3,1927.2,1.76393]
[1742098457447,1.3367,1927.3,1927.1,0.66737746]
[1742098457648,2.37444,1927.3,1927.1,0.66737746]
[1742098457839,5.66344,1927.3,1927.1,0.66737746]
[1742098458152,2.41515,1927.2,1927.1,0.00777746]
[1742098458947,5.62295,1927.2,1927.1,0.00777746]
[1742098461852,2.41515,1927.2,1927.1,0.00777746]
[1742098478669,2.41515,1927.2,1927.1,1.36917746]
[1742098478865,2.41515,1927.2,1927.1,2.77567746]
[1742098479168,2.41515,1927.2,1927.1,2.08137746]
[1742098479559,5.70515,1927.2,1927.1,1.41427746]
[1742098484476,8.91295,1927.2,1927.1,1.41427746]
[1742098485575,9.88316769,1927.2,1927.1,1.41427746]
[1742098488175,6.67536769,1927.2,1927.1,1.41427746]
[1742098488372,8.91295,1927.2,1927.1,1.41427746]
[1742098488777,9.88316769,1927.2,1927.1,1.41427746]
[1742098489476,6.67536769,1927.2,1927.1,1.41427746]
[1742098489970,5.70515,1927.2,1927.1,1.41427746]
[1742098492781,8.91295,1927.2,1927.1,1.41427746]
[1742098493078,6.67536769,1927.2,1927.1,1.41427746]
[1742098493672,5.70515,1927.2,1927.1,1.41427746]
[1742098494370,8.91295,1927.2,1927.1,1.41427746]
[1742098494981,9.88316769,1927.2,1927.1,1.41427746]
[1742098505385,8.91295,1927.2,1927.1,1.41427746]
[1742098507491,9.7557202,1927.2,1927.1,1.41427746]
[1742098507690,8.91295,1927.2,1927.1,1.41427746]
[1742098507891,9.88458301,1927.2,1927.1,1.41427746]
[1742098508094,10.7273332,1927.2,1927.1,1.41427746]
[1742098519596,9.88458301,1927.2,1927.1,1.41427746]
[1742098520403,10.72748778,1927.2,1927.1,1.41427746]
[1742098520704,10.72750138,1927.2,1927.1,1.41427746]
[1742098521096,9.88458301,1927.2,1927.1,1.41427746]
[1742098521410,10.72751882,1927.2,1927.1,1.41427746]
[1742098521704,9.88458301,1927.2,1927.1,1.41427746]
[1742098523005,10.72753512,1927.2,1927.1,1.41427746]
[1742098523505,10.72755883,1927.2,1927.1,1.41427746]
[1742098524303,1.03786,1927.0,1926.9,1.3614]
[1742098525698,2.46786,1927.0,1926.9,2.6873]
[1742098527307,2.00947301,1927.1,1926.9,3.72521]
[1742098527507,3.45987301,1927.1,1927.0,1.4549]
[1742098534406,3.17114,1927.1,1927.0,1.4549]
[1742098538010,1.81519278,1927.2,1927.0,1.4549]
[1742098538211,0.97163301,1927.2,1927.1,1.0378]
[1742098538402,2.28823301,1927.2,1927.1,0.6936]
[1742098538597,1.3166,1927.2,1927.1,1.7314]
[1742098540109,2.00935301,1927.3,1927.1,1.7314]
[1742098540309,3.38775301,1927.3,1927.2,2.1316]
[1742098540709,2.41612,1927.3,1927.2,2.1316]
[1742098541606,1.3784,1927.3,1927.2,3.16935]
[1742098543711,3.29777746,1927.4,1927.3,1.0377]
[1742098543921,4.61757746,1927.4,1927.3,3.1526]
[1742098545212,0.00777746,1927.4,1927.3,3.1526]
[1742098545614,1.46207746,1927.4,1927.3,3.1526]
[1742098546309,0.00777746,1927.4,1927.3,3.1526]
[1742098548112,3.2078,1928.0,1927.3,3.1526]
[1742098548321,1.03746,1927.8,1927.4,1.3417]
[1742098548513,1.03746,1927.8,1927.6,1.03751]
[1742098548719,1.73446,1927.8,1927.6,1.03751]
[1742098549313,1.73446,1927.8,1927.7,1.3417]
[1742098549519,0.697,1927.8,1927.7,1.3417]
[1742098549816,0.697,1927.8,1927.7,2.37918]
[1742098550415,2.0737,1927.8,1927.7,1.3417]
[1742098551622,5.2815,1927.8,1927.7,1.3417]
[1742098552421,2.0737,1927.8,1927.7,1.3417]
[1742098553022,2.0737,1927.8,1927.7,2.37918]
[1742098553417,5.2815,1927.8,1927.7,2.37918]
[1742098553622,6.31893,1927.8,1927.7,1.3417]
[1742098554022,5.2815,1927.8,1927.7,2.37918]
[1742098554326,2.0737,1927.8,1927.7,2.37918]
[1742098555828,1.3767,1927.8,1927.7,2.37918]
[1742098556625,2.41413,1927.8,1927.7,1.3417]
[1742098557830,2.41413,1927.8,1927.5,1.4265]
[1742098557831,1.3767,1927.8,1927.4,4.24541]
[1742098558122,1.03755,1927.6,1927.5,1.4555]
[1742098558524,3.17915,1927.6,1927.5,1.4555]
[1742098561032,1.03759,1927.5,1927.4,4.5319]
[1742098561324,2.43299,1927.5,1927.4,4.5319]
[1742098561925,1.0377,1927.3,1927.1,1.03778]
[1742098562124,0.6827,1927.2,1927.1,1.03778]
[1742098562428,2.0781,1927.2,1927.1,1.03778]
[1742098562932,1.3954,1927.2,1927.1,2.36188]
[1742098565730,1.03762,1927.5,1927.4,1.03764]
[1742098565936,1.03761,1927.5,1927.2,2.8697]
[1742098566232,5.01835,1927.6,1927.4,1.03761]
[1742098566829,5.01835,1927.6,1927.3,1.03765]
[1742098566830,1.03759,1927.5,1927.3,1.03765]
[1742098567031,2.44769,1927.5,1927.3,2.35445]
[1742098567330,1.4101,1927.5,1927.4,1.73114]
[1742098567532,5.98738272,1927.6,1927.4,3.04794]
[1742098567836,5.98738272,1927.6,1927.5,2.35439]
[1742098568035,3.9808,1927.6,1927.5,2.35439]
[1742098568236,5.01833,1927.6,1927.5,1.3168]
[1742098569136,5.01833,1927.6,1927.5,2.35439]
[1742098569337,3.9808,1927.6,1927.5,2.35439]
[1742098570536,1.72933,1927.6,1927.5,1.3168]
[1742098570739,3.9808,1927.6,1927.5,1.3168]
[1742098570927,3.9808,1927.6,1927.5,2.35439]
[1742098571637,5.01833,1927.6,1927.5,1.3168]
[1742098572338,3.9808,1927.6,1927.5,2.35439]
[1742098574932,5.01833,1927.6,1927.5,2.35439]
[1742098575333,5.01833,1927.6,1927.5,1.3168]
[1742098576341,3.9808,1927.6,1927.5,2.35439]
[1742098576541,0.6808,1927.7,1927.6,1.03753]
[1742098576739,4.3265,1927.7,1927.6,2.0822]
[1742098581740,7.5343,1927.7,1927.6,1.4223]
[1742098581945,1.03753,1927.6,1927.5,0.7261]
[1742098582146,1.75223,1927.6,1927.5,0.7261]
[1742098582347,1.75223,1927.6,1927.5,2.1548]
[1742098582549,1.75223,1927.6,1927.5,1.4287]
[1742098582737,1.0377,1927.3,1927.1,4.24558]
[1742098583046,4.32669,1927.4,1927.2,2.46645]
[1742098583346,4.32664,1927.4,1927.3,1.4287]
[1742098583733,3.289,1927.4,1927.3,2.4664]
[1742098583936,4.32664,1927.4,1927.3,1.4287]
[1742098584132,4.32664,1927.4,1927.3,2.1322]
[1742098585747,4.32664,1927.4,1927.3,3.1699]
[1742098586046,3.289,1927.4,1927.3,3.1699]
[1742098586947,4.6847,1927.4,1927.3,3.1699]
[1742098587149,5.72234,1927.4,1927.3,2.1322]
[1742098587851,6.41904,1927.4,1927.3,2.1322]
[1742098590644,6.41904,1927.4,1927.3,3.1699]
[1742098591350,5.3814,1927.4,1927.3,3.1699]
[1742098591941,1.3957,1927.4,1927.3,3.1699]
[1742098592451,3.2078,1927.5,1927.4,1.03764]
[1742098592648,4.6077,1927.5,1927.4,3.05354]
[1742098594347,1.3999,1927.5,1927.4,3.05354]
[1742098596859,2.43749,1927.5,1927.4,3.05354]
[1742098597150,3.11199,1927.5,1927.4,3.05354]
[1742098597757,3.11199,1927.5,1927.4,2.0159]
[1742098597945,3.11199,1927.5,1927.4,1.3209]
[1742098598146,1.03767,1927.4,1927.3,1.0377]
[1742098598455,2.45397,1927.4,1927.3,1.0377]
[1742098598654,3.17117,1927.4,1927.3,1.0377]
[1742098598859,3.17117,1927.4,1927.3,2.4861]
[1742098599448,2.1335,1927.4,1927.3,2.4861]
[1742098601150,1.4163,1927.4,1927.3,2.4861]
[1742098606963,6.63813503,1927.6,1927.3,1.4484]
[1742098607150,1.4405,1927.5,1927.4,3.72894]
[1742098607463,1.4405,1927.5,1927.4,2.41534]
[1742098613564,0.97127503,1927.6,1927.4,1.3777]
[1742098613867,2.32827503,1927.6,1927.5,4.24539]
[1742098614058,1.357,1927.6,1927.5,4.24539]
[1742098616872,2.0189,1927.6,1927.5,4.24539]
[1742098619285,3.05643,1927.6,1927.5,4.24539]
[1742098619684,3.05643,1927.6,1927.5,3.2078]
[1742098619886,2.0189,1927.6,1927.5,4.24539]